[Event "Titled Tuesday Blitz April 4 Early 2023"]
[White "Hirneise, Jens"]
[Black "Makarian, Rudik"]
[WhiteFideId "24614734"]
[BlackFideId "44105681"]
[WhiteElo "2345"]
[BlackElo "2430"]
[Result "1-0"]
[Round "03"]
[TimeControl "180+2"]
[Date "2023.04.04"]
[WhiteClock "0:00:13"]
[BlackClock "0:00:03"]

1. d4 {[%clk 0:03:00]}  Nf6 {[%clk 0:02:59]} 2. Nf3 {[%clk 0:03:01]}  c5 {[%clk 0:02:59]} 3. e3 {[%clk 0:02:59]}  d5 {[%clk 0:02:58]} 4. c4 {[%clk 0:02:56]}  cxd4 {[%clk 0:02:55]} 5. exd4 {[%clk 0:02:56]}  g6 {[%clk 0:02:52]} 6. c5 {[%clk 0:02:54]}  Bg7 {[%clk 0:02:52]} 7. Bb5+ {[%clk 0:02:52]}  Nc6 {[%clk 0:02:31]} 8. O-O {[%clk 0:02:49]}  O-O {[%clk 0:02:31]} 9. Bxc6 {[%clk 0:02:44]}  bxc6 {[%clk 0:02:31]} 10. Ne5 {[%clk 0:02:45]}  Qc7 {[%clk 0:02:21]} 11. Nc3 {[%clk 0:02:41]}  Nd7 {[%clk 0:02:18]} 12. Nxd7 {[%clk 0:02:28]}  Bxd7 {[%clk 0:02:19]} 13. f4 {[%clk 0:02:20]}  a5 {[%clk 0:02:16]} 14. Na4 {[%clk 0:02:15]}  Bf5 {[%clk 0:02:09]} 15. Re1 {[%clk 0:02:12]}  Be4 {[%clk 0:02:08]} 16. Be3 {[%clk 0:02:09]}  f6 {[%clk 0:02:01]} 17. Nc3 {[%clk 0:02:05]}  f5 {[%clk 0:02:01]} 18. Qd2 {[%clk 0:02:03]}  a4 {[%clk 0:02:00]} 19. Nxe4 {[%clk 0:01:53]}  fxe4 {[%clk 0:01:56]} 20. Rac1 {[%clk 0:01:52]}  Qb7 {[%clk 0:01:56]} 21. Rc2 {[%clk 0:01:44]}  Rf7 {[%clk 0:01:51]} 22. Rf1 {[%clk 0:01:38]}  Raf8 {[%clk 0:01:51]} 23. h3 {[%clk 0:01:33]}  e5 {[%clk 0:01:37]} 24. dxe5 {[%clk 0:01:27]}  Bxe5 {[%clk 0:01:38]} 25. g3 {[%clk 0:01:23]}  Qd7 {[%clk 0:01:12]} 26. Rf2 {[%clk 0:00:58]}  Bg7 {[%clk 0:00:56]} 27. Bd4 {[%clk 0:00:46]}  Bxd4 {[%clk 0:00:52]} 28. Qxd4 {[%clk 0:00:47]}  Qxh3 {[%clk 0:00:52]} 29. Rg2 {[%clk 0:00:43]}  Rf5 {[%clk 0:00:44]} 30. Qe3 {[%clk 0:00:40]}  Qg4 {[%clk 0:00:39]} 31. Rcd2 {[%clk 0:00:36]}  g5 {[%clk 0:00:30]} 32. Rdf2 {[%clk 0:00:33]}  h5 {[%clk 0:00:26]} 33. Qd4 {[%clk 0:00:25]}  Kh7 {[%clk 0:00:25]} 34. Qxa4 {[%clk 0:00:24]}  R8f6 {[%clk 0:00:18]} 35. Qa7+ {[%clk 0:00:23]}  Kg6 {[%clk 0:00:17]} 36. Qa8 {[%clk 0:00:21]}  Kg7 {[%clk 0:00:07]} 37. Qb7+ {[%clk 0:00:20]}  Kh6 {[%clk 0:00:07]} 38. Qa8 {[%clk 0:00:19]}  Kg7 {[%clk 0:00:05]} 39. Qb7+ {[%clk 0:00:19]}  Rf7 {[%clk 0:00:06]} 40. Qxc6 {[%clk 0:00:18]}  e3 {[%clk 0:00:04]} 41. Re2 {[%clk 0:00:18]}  d4 {[%clk 0:00:04]} 42. Qd6 {[%clk 0:00:17]}  Kh7 {[%clk 0:00:02]} 43. Qxd4 {[%clk 0:00:17]}  Re7 {[%clk 0:00:01]} 44. Rxe3 {[%clk 0:00:12]}  Rxe3 {[%clk 0:00:02]} 45. Qxe3 {[%clk 0:00:12]}  gxf4 {[%clk 0:00:02]} 46. gxf4 {[%clk 0:00:12]}  Qxf4 {[%clk 0:00:03]} 47. Qxf4 {[%clk 0:00:11]}  Rxf4 {[%clk 0:00:04]} 48. Rc2 {[%clk 0:00:11]}  Rf7 {[%clk 0:00:03]} 49. c6 {[%clk 0:00:12]}  Rc7 {[%clk 0:00:04]} 50. b4 {[%clk 0:00:12]}  Kg6 {[%clk 0:00:03]} 51. b5 {[%clk 0:00:13]}  Rxc6 {[%clk 0:00:03]} 52. bxc6 {[%clk 0:00:13]} 1-0


[Site "https://www.chess.com"]

[Event "Titled Tuesday Blitz April 4 Early 2023"]
[White "Gil Alba, Hector Luis"]
[Black "Gharibyan, Mamikon"]
[WhiteFideId "3504670"]
[BlackFideId "13308300"]
[WhiteElo "2331"]
[BlackElo "2445"]
[Result "0-1"]
[Round "03"]
[TimeControl "180+2"]
[Date "2023.04.04"]
[WhiteClock "0:00:06"]
[BlackClock "0:00:19"]

1. e4 {[%clk 0:03:00]}  g6 {[%clk 0:02:59]} 2. d4 {[%clk 0:03:00]}  d6 {[%clk 0:02:59]} 3. Nc3 {[%clk 0:03:00]}  a6 {[%clk 0:02:59]} 4. f4 {[%clk 0:02:59]}  b5 {[%clk 0:02:59]} 5. Nf3 {[%clk 0:02:59]}  Bb7 {[%clk 0:02:58]} 6. Bd3 {[%clk 0:02:58]}  Nd7 {[%clk 0:02:57]} 7. e5 {[%clk 0:02:58]}  e6 {[%clk 0:02:54]} 8. O-O {[%clk 0:02:56]}  c5 {[%clk 0:02:50]} 9. dxc5 {[%clk 0:02:54]}  Nxc5 {[%clk 0:02:47]} 10. Be3 {[%clk 0:02:35]}  Nh6 {[%clk 0:02:41]} 11. Bxc5 {[%clk 0:02:29]}  dxc5 {[%clk 0:02:40]} 12. Be4 {[%clk 0:02:29]}  Qb6 {[%clk 0:02:31]} 13. Qe2 {[%clk 0:02:15]}  c4+ {[%clk 0:02:23]} 14. Kh1 {[%clk 0:02:13]}  Be7 {[%clk 0:02:19]} 15. Rad1 {[%clk 0:02:04]}  Nf5 {[%clk 0:02:06]} 16. Bxb7 {[%clk 0:01:52]}  Qxb7 {[%clk 0:02:05]} 17. Ne4 {[%clk 0:01:42]}  O-O {[%clk 0:02:01]} 18. g4 {[%clk 0:01:40]}  Nh6 {[%clk 0:01:48]} 19. Rg1 {[%clk 0:01:36]}  Kg7 {[%clk 0:01:46]} 20. Rde1 {[%clk 0:01:33]}  Rad8 {[%clk 0:01:39]} 21. c3 {[%clk 0:01:29]}  Rd3 {[%clk 0:01:39]} 22. Nd4 {[%clk 0:01:27]}  b4 {[%clk 0:01:34]} 23. f5 {[%clk 0:01:22]}  exf5 {[%clk 0:01:09]} 24. gxf5 {[%clk 0:01:20]}  Bc5 {[%clk 0:01:08]} 25. f6+ {[%clk 0:00:55]}  Kh8 {[%clk 0:01:07]} 26. e6 {[%clk 0:00:51]}  Bxd4 {[%clk 0:00:45]} 27. e7 {[%clk 0:00:45]}  Re8 {[%clk 0:00:36]} 28. cxd4 {[%clk 0:00:45]}  Rxd4 {[%clk 0:00:36]} 29. Qg2 {[%clk 0:00:45]}  Ng8 {[%clk 0:00:28]} 30. Rgf1 {[%clk 0:00:35]}  h6 {[%clk 0:00:27]} 31. Rd1 {[%clk 0:00:17]}  Qxe4 {[%clk 0:00:19]} 32. Qxe4 {[%clk 0:00:17]}  Rxe4 {[%clk 0:00:20]} 33. Rd8 {[%clk 0:00:17]}  Nxf6 {[%clk 0:00:19]} 34. Rxe8+ {[%clk 0:00:12]}  Nxe8 {[%clk 0:00:18]} 35. Rxf7 {[%clk 0:00:10]}  Ng7 {[%clk 0:00:18]} 36. Kg2 {[%clk 0:00:09]}  c3 {[%clk 0:00:18]} 37. bxc3 {[%clk 0:00:08]}  bxc3 {[%clk 0:00:19]} 38. Rf8+ {[%clk 0:00:07]}  Kh7 {[%clk 0:00:19]} 39. Rc8 {[%clk 0:00:07]}  Rxe7 {[%clk 0:00:19]} 40. Rxc3 {[%clk 0:00:06]}  Re2+ {[%clk 0:00:19]} 0-1


[Site "https://www.chess.com"]

[Event "Titled Tuesday Blitz April 4 Early 2023"]
[White "Ibadov, Dashgyn"]
[Black "Maksimovic, Bojan"]
[WhiteFideId "24107514"]
[BlackFideId "14408120"]
[WhiteElo "2208"]
[BlackElo "2468"]
[Result "0-1"]
[Round "03"]
[TimeControl "180+2"]
[Date "2023.04.04"]
[WhiteClock "0:01:00"]
[BlackClock "0:00:29"]

1. e4 {[%clk 0:03:00]}  c5 {[%clk 0:03:00]} 2. Nf3 {[%clk 0:02:59]}  Nc6 {[%clk 0:03:00]} 3. Bb5 {[%clk 0:02:58]}  e6 {[%clk 0:03:00]} 4. O-O {[%clk 0:02:57]}  Nge7 {[%clk 0:03:00]} 5. d4 {[%clk 0:02:58]}  cxd4 {[%clk 0:03:01]} 6. Nxd4 {[%clk 0:02:59]}  Ng6 {[%clk 0:03:01]} 7. Be2 {[%clk 0:02:41]}  Be7 {[%clk 0:02:59]} 8. c4 {[%clk 0:02:36]}  O-O {[%clk 0:03:00]} 9. Nc3 {[%clk 0:02:36]}  b6 {[%clk 0:03:00]} 10. Be3 {[%clk 0:02:33]}  Nxd4 {[%clk 0:02:57]} 11. Qxd4 {[%clk 0:02:33]}  Bb7 {[%clk 0:02:58]} 12. Rfd1 {[%clk 0:02:27]}  Bc6 {[%clk 0:02:58]} 13. Rac1 {[%clk 0:02:25]}  f5 {[%clk 0:02:40]} 14. exf5 {[%clk 0:02:20]}  Nh4 {[%clk 0:02:40]} 15. fxe6 {[%clk 0:01:56]}  Nxg2 {[%clk 0:02:39]} 16. exd7 {[%clk 0:01:53]}  Bc5 {[%clk 0:02:15]} 17. Qe5 {[%clk 0:01:26]}  Nxe3 {[%clk 0:02:00]} 18. fxe3 {[%clk 0:01:24]}  Kh8 {[%clk 0:00:49]} 19. Ne4 {[%clk 0:01:10]}  Bxe3+ {[%clk 0:00:35]} 20. Kh1 {[%clk 0:01:10]}  Qh4 {[%clk 0:00:29]} 21. Bd3 {[%clk 0:01:00]}  Bf4 {[%clk 0:00:29]} 0-1


[Site "https://www.chess.com"]

[Event "Titled Tuesday Blitz April 4 Early 2023"]
[White "Real_OceanStorm"]
[Black "Ferenc83"]
[WhiteElo "2799"]
[BlackElo "2522"]
[Result "1-0"]
[Round "03"]
[TimeControl "180+2"]
[Date "2023.04.04"]
[WhiteClock "0:00:04"]
[BlackClock "0:00:23"]

1. e4 {[%clk 0:03:00]}  c6 {[%clk 0:02:58]} 2. d4 {[%clk 0:02:59]}  d5 {[%clk 0:02:58]} 3. e5 {[%clk 0:02:59]}  Bf5 {[%clk 0:02:57]} 4. Be2 {[%clk 0:02:59]}  e6 {[%clk 0:02:56]} 5. Nf3 {[%clk 0:02:59]}  Nd7 {[%clk 0:02:54]} 6. O-O {[%clk 0:02:59]}  h6 {[%clk 0:02:54]} 7. h3 {[%clk 0:02:59]}  Ne7 {[%clk 0:02:49]} 8. Nc3 {[%clk 0:02:59]}  Bh7 {[%clk 0:02:45]} 9. b3 {[%clk 0:02:58]}  g5 {[%clk 0:02:43]} 10. Nh2 {[%clk 0:02:58]}  Ng6 {[%clk 0:02:41]} 11. Bd3 {[%clk 0:02:58]}  Bg7 {[%clk 0:02:41]} 12. Ne2 {[%clk 0:02:57]}  Qb6 {[%clk 0:02:34]} 13. Be3 {[%clk 0:02:51]}  O-O {[%clk 0:02:25]} 14. Ng4 {[%clk 0:02:41]}  c5 {[%clk 0:02:13]} 15. c3 {[%clk 0:02:40]}  cxd4 {[%clk 0:02:10]} 16. cxd4 {[%clk 0:02:39]}  Rac8 {[%clk 0:02:10]} 17. Ng3 {[%clk 0:02:27]}  f5 {[%clk 0:01:58]} 18. Nxh6+ {[%clk 0:01:32]}  Bxh6 {[%clk 0:01:54]} 19. Qh5 {[%clk 0:01:31]}  Kg7 {[%clk 0:01:47]} 20. Bxg5 {[%clk 0:01:30]}  Bxg5 {[%clk 0:01:45]} 21. Qxg5 {[%clk 0:01:30]}  Qxd4 {[%clk 0:01:44]} 22. Rfd1 {[%clk 0:01:26]}  Qxe5 {[%clk 0:01:43]} 23. Re1 {[%clk 0:01:21]}  Qd6 {[%clk 0:01:35]} 24. Nh5+ {[%clk 0:01:20]}  Kh8 {[%clk 0:01:28]} 25. Rad1 {[%clk 0:01:15]}  Rf7 {[%clk 0:01:22]} 26. Be2 {[%clk 0:01:11]}  Rg8 {[%clk 0:01:19]} 27. Qd2 {[%clk 0:01:01]}  Nf6 {[%clk 0:01:11]} 28. Nxf6 {[%clk 0:00:44]}  Rxf6 {[%clk 0:01:11]} 29. Kh1 {[%clk 0:00:44]}  Nf4 {[%clk 0:01:08]} 30. Bf1 {[%clk 0:00:44]}  b6 {[%clk 0:01:05]} 31. g3 {[%clk 0:00:44]}  Ng6 {[%clk 0:01:04]} 32. Qb2 {[%clk 0:00:44]}  e5 {[%clk 0:01:02]} 33. Bc4 {[%clk 0:00:44]}  d4 {[%clk 0:01:01]} 34. Bxg8 {[%clk 0:00:43]}  Bxg8 {[%clk 0:01:00]} 35. Qe2 {[%clk 0:00:42]}  Bd5+ {[%clk 0:01:00]} 36. Kh2 {[%clk 0:00:42]}  Bb7 {[%clk 0:00:59]} 37. Rg1 {[%clk 0:00:41]}  Qd5 {[%clk 0:00:58]} 38. Qh5+ {[%clk 0:00:41]}  Kg7 {[%clk 0:00:58]} 39. Rd2 {[%clk 0:00:42]}  d3 {[%clk 0:00:58]} 40. h4 {[%clk 0:00:40]}  e4 {[%clk 0:00:57]} 41. Qg5 {[%clk 0:00:39]}  Kf7 {[%clk 0:00:57]} 42. Rc1 {[%clk 0:00:39]}  Rc6 {[%clk 0:00:54]} 43. Rcd1 {[%clk 0:00:37]}  Ne5 {[%clk 0:00:50]} 44. Qh5+ {[%clk 0:00:32]}  Ke6 {[%clk 0:00:45]} 45. Qe8+ {[%clk 0:00:32]}  Kd6 {[%clk 0:00:43]} 46. Qb8+ {[%clk 0:00:31]}  Kc5 {[%clk 0:00:38]} 47. Qxb7 {[%clk 0:00:25]}  Nf3+ {[%clk 0:00:36]} 48. Kh3 {[%clk 0:00:25]}  Nxd2 {[%clk 0:00:36]} 49. Rc1+ {[%clk 0:00:24]}  Kb4 {[%clk 0:00:31]} 50. Rxc6 {[%clk 0:00:23]}  e3 {[%clk 0:00:29]} 51. Rxb6+ {[%clk 0:00:14]}  axb6 {[%clk 0:00:29]} 52. Qxd5 {[%clk 0:00:14]}  e2 {[%clk 0:00:28]} 53. Qe6 {[%clk 0:00:14]}  Kc3 {[%clk 0:00:27]} 54. Kg2 {[%clk 0:00:14]}  Ne4 {[%clk 0:00:27]} 55. Qxb6 {[%clk 0:00:08]}  e1=Q {[%clk 0:00:25]} 56. Qa5+ {[%clk 0:00:08]}  Kc2 {[%clk 0:00:24]} 57. Qxe1 {[%clk 0:00:08]}  d2 {[%clk 0:00:25]} 58. Qf1 {[%clk 0:00:04]}  d1=Q {[%clk 0:00:23]} 59. Qxd1+ {[%clk 0:00:03]}  Kxd1 {[%clk 0:00:24]} 60. h5 {[%clk 0:00:03]}  Kc2 {[%clk 0:00:23]} 61. h6 {[%clk 0:00:03]}  Nf6 {[%clk 0:00:23]} 62. Kf3 {[%clk 0:00:04]}  Kc3 {[%clk 0:00:23]} 63. Kf4 {[%clk 0:00:04]} 1-0


[Site "https://www.chess.com"]

[Event "Titled Tuesday Blitz April 4 Early 2023"]
[White "Remizov, Yaroslav"]
[Black "Shvedova, Alexandra"]
[WhiteFideId "34134015"]
[BlackFideId "54154782"]
[WhiteElo "2412"]
[BlackElo "2057"]
[Result "1-0"]
[Round "03"]
[TimeControl "180+2"]
[Date "2023.04.04"]
[WhiteClock "0:01:08"]
[BlackClock "0:00:43"]

1. e4 {[%clk 0:02:56]}  c5 {[%clk 0:03:00]} 2. Nf3 {[%clk 0:02:55]}  d6 {[%clk 0:03:00]} 3. d4 {[%clk 0:02:54]}  cxd4 {[%clk 0:03:01]} 4. Nxd4 {[%clk 0:02:55]}  Nf6 {[%clk 0:03:01]} 5. Nc3 {[%clk 0:02:55]}  a6 {[%clk 0:03:01]} 6. Bg5 {[%clk 0:02:52]}  Nbd7 {[%clk 0:03:01]} 7. f4 {[%clk 0:02:51]}  Qc7 {[%clk 0:03:00]} 8. Qf3 {[%clk 0:02:51]}  h6 {[%clk 0:03:00]} 9. Bh4 {[%clk 0:02:44]}  g5 {[%clk 0:03:00]} 10. fxg5 {[%clk 0:02:42]}  hxg5 {[%clk 0:03:00]} 11. Bxg5 {[%clk 0:02:41]}  Qc5 {[%clk 0:03:00]} 12. Be3 {[%clk 0:02:32]}  Ne5 {[%clk 0:03:00]} 13. Qe2 {[%clk 0:02:28]}  Neg4 {[%clk 0:02:58]} 14. Bg1 {[%clk 0:02:23]}  Bh6 {[%clk 0:02:58]} 15. h3 {[%clk 0:02:04]}  Qb4 {[%clk 0:02:27]} 16. Nb3 {[%clk 0:01:58]}  d5 {[%clk 0:01:40]} 17. Bc5 {[%clk 0:01:32]}  Qc4 {[%clk 0:01:17]} 18. Qd1 {[%clk 0:01:32]}  Qxc3+ {[%clk 0:01:01]} 19. bxc3 {[%clk 0:01:29]}  Nxe4 {[%clk 0:01:00]} 20. hxg4 {[%clk 0:01:15]}  Bd2+ {[%clk 0:00:47]} 21. Nxd2 {[%clk 0:01:14]}  Rxh1 {[%clk 0:00:46]} 22. Nxe4 {[%clk 0:01:14]}  dxe4 {[%clk 0:00:46]} 23. Kf2 {[%clk 0:01:09]}  Be6 {[%clk 0:00:43]} 24. Bb5+ {[%clk 0:01:08]} 1-0


[Site "https://www.chess.com"]

[Event "Titled Tuesday Blitz April 4 Early 2023"]
[White "Csonka, Balazs"]
[Black "Kubatko, Ivan"]
[WhiteFideId "742910"]
[BlackFideId "24111473"]
[WhiteElo "2404"]
[BlackElo "2285"]
[Result "1/2-1/2"]
[Round "03"]
[TimeControl "180+2"]
[Date "2023.04.04"]
[WhiteClock "0:00:06"]
[BlackClock "0:00:05"]

1. e4 {[%clk 0:03:00]}  d5 {[%clk 0:02:59]} 2. exd5 {[%clk 0:02:56]}  Qxd5 {[%clk 0:03:00]} 3. Nf3 {[%clk 0:02:55]}  Nf6 {[%clk 0:03:00]} 4. c4 {[%clk 0:02:51]}  Qa5 {[%clk 0:02:59]} 5. Nc3 {[%clk 0:02:51]}  Bg4 {[%clk 0:02:59]} 6. d4 {[%clk 0:02:48]}  Nc6 {[%clk 0:02:57]} 7. Bd2 {[%clk 0:02:23]}  Qf5 {[%clk 0:02:13]} 8. Be2 {[%clk 0:01:27]}  Bxf3 {[%clk 0:02:11]} 9. Bxf3 {[%clk 0:01:27]}  Nxd4 {[%clk 0:02:12]} 10. Bxb7 {[%clk 0:01:24]}  Rb8 {[%clk 0:01:43]} 11. Qa4+ {[%clk 0:01:16]}  Qd7 {[%clk 0:01:40]} 12. Qxa7 {[%clk 0:01:10]}  Rxb7 {[%clk 0:01:32]} 13. Qa8+ {[%clk 0:00:54]}  Qd8 {[%clk 0:01:28]} 14. Qxb7 {[%clk 0:00:55]}  Nc2+ {[%clk 0:01:23]} 15. Ke2 {[%clk 0:00:54]}  Nxa1 {[%clk 0:01:03]} 16. Rxa1 {[%clk 0:00:55]}  e6 {[%clk 0:01:02]} 17. Bg5 {[%clk 0:00:48]}  Bd6 {[%clk 0:00:29]} 18. Rd1 {[%clk 0:00:34]}  O-O {[%clk 0:00:18]} 19. c5 {[%clk 0:00:34]}  h6 {[%clk 0:00:15]} 20. Bxf6 {[%clk 0:00:19]}  Qxf6 {[%clk 0:00:15]} 21. cxd6 {[%clk 0:00:19]}  cxd6 {[%clk 0:00:15]} 22. g3 {[%clk 0:00:12]}  d5 {[%clk 0:00:15]} 23. a4 {[%clk 0:00:10]}  Qe5+ {[%clk 0:00:10]} 24. Kf1 {[%clk 0:00:10]}  Rb8 {[%clk 0:00:11]} 25. Qc6 {[%clk 0:00:09]}  Rxb2 {[%clk 0:00:09]} 26. Qe8+ {[%clk 0:00:08]}  Kh7 {[%clk 0:00:08]} 27. Qxf7 {[%clk 0:00:09]}  Qxc3 {[%clk 0:00:06]} 28. Qf4 {[%clk 0:00:03]}  Rb4 {[%clk 0:00:04]} 29. Qe3 {[%clk 0:00:02]}  Qxe3 {[%clk 0:00:04]} 30. fxe3 {[%clk 0:00:03]}  Rxa4 {[%clk 0:00:04]} 31. Kg2 {[%clk 0:00:02]}  Ra2+ {[%clk 0:00:04]} 32. Kh3 {[%clk 0:00:02]}  g5 {[%clk 0:00:03]} 33. e4 {[%clk 0:00:01]}  dxe4 {[%clk 0:00:02]} 34. Rd4 {[%clk 0:00:02]}  e3 {[%clk 0:00:01]} 35. Re4 {[%clk 0:00:03]}  e2 {[%clk 0:00:01]} 36. Rxe6 {[%clk 0:00:03]}  Kg7 {[%clk 0:00:01]} 37. Kg4 {[%clk 0:00:03]}  Ra4+ {[%clk 0:00:01]} 38. Kf3 {[%clk 0:00:03]}  Ra2 {[%clk 0:00:02]} 39. Rxe2 {[%clk 0:00:03]}  Rxe2 {[%clk 0:00:02]} 40. Kxe2 {[%clk 0:00:03]}  Kf6 {[%clk 0:00:03]} 41. Kf3 {[%clk 0:00:04]}  Kf5 {[%clk 0:00:03]} 42. g4+ {[%clk 0:00:05]}  Ke5 {[%clk 0:00:04]} 43. Ke3 {[%clk 0:00:06]}  Kd5 {[%clk 0:00:04]} 44. Kd3 {[%clk 0:00:06]}  Ke5 {[%clk 0:00:04]} 45. Ke3 {[%clk 0:00:07]}  Kd5 {[%clk 0:00:05]} 46. Kd3 {[%clk 0:00:05]}  Ke5 {[%clk 0:00:05]} 47. Ke3 {[%clk 0:00:06]} 1/2-1/2


[Site "https://www.chess.com"]

[Event "Titled Tuesday Blitz April 4 Early 2023"]
[White "Topalov, Aleksandar"]
[Black "Schmakel, Sam"]
[WhiteFideId "925659"]
[BlackFideId "2039311"]
[WhiteElo "2151"]
[BlackElo "2356"]
[Result "0-1"]
[Round "03"]
[TimeControl "180+2"]
[Date "2023.04.04"]
[WhiteClock "0:00:35"]
[BlackClock "0:00:13"]

1. b3 {[%clk 0:03:00]}  g6 {[%clk 0:02:59]} 2. Bb2 {[%clk 0:03:00]}  Nf6 {[%clk 0:03:00]} 3. Bxf6 {[%clk 0:03:00]}  exf6 {[%clk 0:03:00]} 4. c4 {[%clk 0:03:00]}  d5 {[%clk 0:03:01]} 5. cxd5 {[%clk 0:03:00]}  Qxd5 {[%clk 0:03:02]} 6. e3 {[%clk 0:02:59]}  Bg7 {[%clk 0:03:00]} 7. Nc3 {[%clk 0:02:57]}  Qd6 {[%clk 0:03:01]} 8. d4 {[%clk 0:02:52]}  c6 {[%clk 0:03:00]} 9. Nge2 {[%clk 0:02:52]}  f5 {[%clk 0:03:01]} 10. g3 {[%clk 0:02:52]}  h5 {[%clk 0:03:00]} 11. h4 {[%clk 0:02:48]}  Nd7 {[%clk 0:03:01]} 12. Bg2 {[%clk 0:02:48]}  Nf6 {[%clk 0:03:01]} 13. O-O {[%clk 0:02:43]}  Bd7 {[%clk 0:03:00]} 14. Rb1 {[%clk 0:02:41]}  Ng4 {[%clk 0:02:38]} 15. b4 {[%clk 0:02:37]}  a6 {[%clk 0:02:19]} 16. a4 {[%clk 0:02:36]}  O-O {[%clk 0:02:19]} 17. b5 {[%clk 0:02:33]}  axb5 {[%clk 0:02:19]} 18. axb5 {[%clk 0:02:33]}  Ra3 {[%clk 0:02:19]} 19. bxc6 {[%clk 0:02:30]}  bxc6 {[%clk 0:02:20]} 20. Qc1 {[%clk 0:02:24]}  Rfa8 {[%clk 0:02:18]} 21. Nf4 {[%clk 0:02:11]}  R8a7 {[%clk 0:02:07]} 22. Nd3 {[%clk 0:02:06]}  g5 {[%clk 0:01:09]} 23. hxg5 {[%clk 0:01:46]}  h4 {[%clk 0:01:10]} 24. Nf4 {[%clk 0:01:40]}  hxg3 {[%clk 0:01:08]} 25. fxg3 {[%clk 0:01:41]}  Nxe3 {[%clk 0:01:08]} 26. Nce2 {[%clk 0:01:07]}  Nxf1 {[%clk 0:00:46]} 27. Qxf1 {[%clk 0:01:07]}  Bxd4+ {[%clk 0:00:46]} 28. Nxd4 {[%clk 0:01:07]}  Qxd4+ {[%clk 0:00:47]} 29. Kh2 {[%clk 0:01:07]}  Qe3 {[%clk 0:00:38]} 30. Rb8+ {[%clk 0:00:55]}  Kh7 {[%clk 0:00:38]} 31. Qh1 {[%clk 0:00:44]}  Ra1 {[%clk 0:00:20]} 32. Bf1 {[%clk 0:00:37]}  R7a2+ {[%clk 0:00:20]} 33. Kh3 {[%clk 0:00:37]}  Qf2 {[%clk 0:00:13]} 34. Bg2 {[%clk 0:00:35]}  Rxh1+ {[%clk 0:00:13]} 0-1


[Site "https://www.chess.com"]

[Event "Titled Tuesday Blitz April 4 Early 2023"]
[White "Srinath, Rao S.V."]
[Black "Matute Escobar, Roxanny"]
[WhiteFideId "5028876"]
[BlackFideId "3926028"]
[WhiteElo "2196"]
[BlackElo "1844"]
[Result "1-0"]
[Round "03"]
[TimeControl "180+2"]
[Date "2023.04.04"]
[WhiteClock "0:00:51"]
[BlackClock "0:00:28"]

1. d4 {[%clk 0:03:00]}  Nf6 {[%clk 0:02:59]} 2. Nf3 {[%clk 0:03:01]}  g6 {[%clk 0:02:59]} 3. c4 {[%clk 0:03:01]}  Bg7 {[%clk 0:02:59]} 4. Nc3 {[%clk 0:02:56]}  O-O {[%clk 0:02:59]} 5. e4 {[%clk 0:02:57]}  d6 {[%clk 0:02:59]} 6. h3 {[%clk 0:02:57]}  e5 {[%clk 0:02:50]} 7. d5 {[%clk 0:02:54]}  Nbd7 {[%clk 0:02:44]} 8. Qc2 {[%clk 0:02:37]}  Nh5 {[%clk 0:02:37]} 9. g3 {[%clk 0:02:37]}  f5 {[%clk 0:02:35]} 10. exf5 {[%clk 0:02:37]}  gxf5 {[%clk 0:02:34]} 11. Be2 {[%clk 0:02:31]}  Nc5 {[%clk 0:02:06]} 12. Be3 {[%clk 0:02:19]}  f4 {[%clk 0:01:48]} 13. Bxc5 {[%clk 0:02:18]}  dxc5 {[%clk 0:01:44]} 14. g4 {[%clk 0:02:18]}  Nf6 {[%clk 0:01:33]} 15. Ng5 {[%clk 0:02:15]}  Qe7 {[%clk 0:01:18]} 16. O-O-O {[%clk 0:02:12]}  Bh6 {[%clk 0:01:14]} 17. h4 {[%clk 0:02:01]}  Kh8 {[%clk 0:01:12]} 18. f3 {[%clk 0:01:56]}  a6 {[%clk 0:01:10]} 19. Nce4 {[%clk 0:01:44]}  Nxe4 {[%clk 0:01:08]} 20. Qxe4 {[%clk 0:01:45]}  Bd7 {[%clk 0:00:58]} 21. Bd3 {[%clk 0:01:44]}  b5 {[%clk 0:00:51]} 22. Nxh7 {[%clk 0:01:32]}  bxc4 {[%clk 0:00:51]} 23. Bc2 {[%clk 0:01:28]}  Rab8 {[%clk 0:00:51]} 24. Rde1 {[%clk 0:01:17]}  Bg7 {[%clk 0:00:47]} 25. h5 {[%clk 0:01:17]}  c3 {[%clk 0:00:38]} 26. Nxf8 {[%clk 0:01:10]}  Bxf8 {[%clk 0:00:37]} 27. bxc3 {[%clk 0:01:06]}  Bb5 {[%clk 0:00:35]} 28. Qf5 {[%clk 0:00:53]}  Re8 {[%clk 0:00:28]} 29. Rxe5 {[%clk 0:00:51]} 1-0


[Site "https://www.chess.com"]